Body Name,Body,Supplier Name,Spending Service,Nature of Spend,Ledger Date,Invoice Reference,Net Amount (excluding VAT)
Lancaster City Council,30UH,8 Solutions Ltd,Resources,Infrastructure - Update & Maintenance,31/07/2014,12323,1080.00
Lancaster City Council,30UH,A & C Weber UK Ltd,Environmental Services,Equipment and Tools - General,23/07/2014,2014-001854,4300.00
Lancaster City Council,30UH,A G Electrics,Environmental Services,Materials - General,16/07/2014,091617,1985.00
Lancaster City Council,30UH,A1 Supaskips Ltd,Environmental Services,Services - Waste Disposal,01/07/2014,58904,1222.70
Lancaster City Council,30UH,A1 Supaskips Ltd,Environmental Services,Services - Waste Disposal,17/07/2014,59090,831.65
Lancaster City Council,30UH,A1 Supaskips Ltd,Environmental Services,Services - Waste Disposal,23/07/2014,14057,1153.32
Lancaster City Council,30UH,AA Event Traffic Solutions,Health & Housing,Service Training Budget,03/07/2014,94903807,792.00
Lancaster City Council,30UH,Adactus Housing Association Ltd,Regeneration and Planning,Capital Grants,30/07/2014,LCC - PB,159386.29
Lancaster City Council,30UH,Adobe,Resources,Office Equipment,07/07/2014,jpc000165,730.00
Lancaster City Council,30UH,Airkix,Health & Housing,Services - General,41849,bpc001509,765
Lancaster City Council,30UH,Alec Lyon,Regeneration and Planning,Services - General,03/07/2014,Platform 29,508.00
Lancaster City Council,30UH,All-Electric Productions,Regeneration and Planning,Exhibitions & Events - Guarantees,16/07/2014,5782,5000.00
Lancaster City Council,30UH,Allied (Lancaster) Limited,Environmental Services,Recharge from Lancaster Marketgate,02/07/2014,820,2500.00
Lancaster City Council,30UH,Anchor Flooring Limited,Environmental Services,R & M - Buildings,30/07/2014,AF/4339,1365.00
Lancaster City Council,30UH,Anglo Espanol Ltd t/a Plastech Windows,Environmental Services,Anti-Social Behaviour,22/07/2014,3683,1158.33
Lancaster City Council,30UH,Anglo Espanol Ltd t/a Plastech Windows,Environmental Services,Capital Payments To Contractors,07/07/2014,3615,1570.00
Lancaster City Council,30UH,Anglo Espanol Ltd t/a Plastech Windows,Environmental Services,Capital Payments To Contractors,23/07/2014,3512,875.00
Lancaster City Council,30UH,Anglo Espanol Ltd t/a Plastech Windows,Environmental Services,Contracted Services,03/07/2014,3614,562.50
Lancaster City Council,30UH,Anglo Espanol Ltd t/a Plastech Windows,Environmental Services,Contracted Services,16/07/2014,3543,715.00
Lancaster City Council,30UH,Anglo Espanol Ltd t/a Plastech Windows,Environmental Services,Contracted Services,16/07/2014,3544,895.00
Lancaster City Council,30UH,Anglo Espanol Ltd t/a Plastech Windows,Environmental Services,Contracted Services,16/07/2014,3545,875.00
Lancaster City Council,30UH,Anglo Espanol Ltd t/a Plastech Windows,Environmental Services,Contracted Services,16/07/2014,3684,695.00
Lancaster City Council,30UH,Anglo Espanol Ltd t/a Plastech Windows,Environmental Services,Contracted Services,22/07/2014,3513,1513.33
Lancaster City Council,30UH,Anglo Espanol Ltd t/a Plastech Windows,Health & Housing,Capital Grants,07/07/2014,spr000483,1275.00
Lancaster City Council,30UH,Apex Radio Systems Limited,Health & Housing,Equipment and Tools - General,16/07/2014,174004,936.00
Lancaster City Council,30UH,APSE,Environmental Services,Services - Consultants,04/07/2014,1415/372,1351.30
Lancaster City Council,30UH,APSE,Environmental Services,Services - Consultants,29/07/2014,1415/651,738.37
Lancaster City Council,30UH,APSE,Environmental Services,Subscriptions,29/07/2014,PN 1415/98,3547.00
Lancaster City Council,30UH,Astbury Professional Services,Health & Housing,Services - Medical Fees,17/07/2014,16.07.14,738.00
Lancaster City Council,30UH,ATS Euromaster Ltd,Environmental Services,Repair & Mtce Of Vehicles,25/07/2014,A9980099795,3240.97
Lancaster City Council,30UH,Bang Design Ltd,Regeneration and Planning,Marketing,08/07/2014,BANG011113,610.00
Lancaster City Council,30UH,Barton Grange Landscapes,Regeneration and Planning,Capital Payments To Contractors,31/07/2014,37900,50000.00
Lancaster City Council,30UH,Barton Grange Landscapes,Regeneration and Planning,Capital Payments To Contractors,31/07/2014,37900,6866.96
Lancaster City Council,30UH,Barton Grange Landscapes,Regeneration and Planning,R & M - Environmental Works,31/07/2014,37901,3812.00
Lancaster City Council,30UH,Bay Camera & Communications Ltd,Health & Housing,Anti-Social Behaviour,09/07/2014,2945,710.00
Lancaster City Council,30UH,Bay Camera & Communications Ltd,Environmental Services,Contract Maintenance,08/07/2014,2959,1383.33
Lancaster City Council,30UH,Bell Microsystems Ltd,Resources,Services - Consultants,03/07/2014,SI112103,9555.00
Lancaster City Council,30UH,Bell Microsystems Ltd,Resources,Services - Consultants,03/07/2014,SI112105,6800.00
Lancaster City Council,30UH,BIAZA,Environmental Services,Subscriptions,01/07/2014,2714,548.31
Lancaster City Council,30UH,Blunderbus Theatre Co Ltd,Regeneration and Planning,Exhibitions & Events - Guarantees,10/07/2014,6697,1500.00
Lancaster City Council,30UH,Bolton-Le-Sands Parish Council,Regeneration and Planning,Parish Lengthsman,03/07/2014,2014/06/27,1260.00
Lancaster City Council,30UH,Booker,Environmental Services,Materials For Resale,41851,24840,815.59
Lancaster City Council,30UH,Booker,Environmental Services,Materials For Resale,41851,24841,1292.2
Lancaster City Council,30UH,Booker Limited,Health & Housing,Materials For Resale,41849,bpc001493,564.63
Lancaster City Council,30UH,Bookers,Regeneration and Planning,Bar Supplies,41848,npc000299,622.66
Lancaster City Council,30UH,Bowker IT Limited,Health & Housing,R & M - Buildings,24/07/2014,906249,2083.06
Lancaster City Council,30UH,British Gas,Resources,Electricity,41822,ppc000112,2270.02
Lancaster City Council,30UH,British Gas Business,Health & Housing,Electricity,01/07/2014,67968295/1,995.69
Lancaster City Council,30UH,British Gas Business,Health & Housing,Electricity,21/07/2014,68279556/1,992.10
Lancaster City Council,30UH,British Gas Business,Health & Housing,Electricity,21/07/2014,68280035/1,883.92
Lancaster City Council,30UH,British Gas Business,Health & Housing,Gas,31/07/2014,68418160/1,4002.59
Lancaster City Council,30UH,British Gas Business,Health & Housing,Gas,17/07/2014,68416020/1,1080.15
Lancaster City Council,30UH,British Gas Business,Health & Housing,Gas,17/07/2014,68416021/1,774.34
Lancaster City Council,30UH,British Gas Business,Health & Housing,Gas,17/07/2014,68420767/1,1199.57
Lancaster City Council,30UH,British Gas Business,Health & Housing,Gas,17/07/2014,68422456/1,664.47
Lancaster City Council,30UH,British Gas Business,Health & Housing,Gas,17/07/2014,68422457/1,772.15
Lancaster City Council,30UH,British Gas Business,Environmental Services,Gas,22/07/2014,68443107/1,1435.34
Lancaster City Council,30UH,British Gas Business,Resources,Gas,23/07/2014,59973141/1,4031.85
Lancaster City Council,30UH,British Gas Business,Resources,Gas,23/07/2014,68231402/1,502.88
Lancaster City Council,30UH,Butterfly Conservation,Regeneration and Planning,Grants,01/07/2014,npr000147,19627.30
Lancaster City Council,30UH,C H Brownsord Ltd,Environmental Services,Contracted Services,08/07/2014,388,1368.00
Lancaster City Council,30UH,C H Brownsord Ltd,Environmental Services,Contracted Services,22/07/2014,394,9200.00
Lancaster City Council,30UH,Cable&Wireless UK,Resources,Data Line Rental,16/07/2014,CN/UK10/072014/35218,-664.20
Lancaster City Council,30UH,Cable&Wireless UK,Resources,Data Line Rental,16/07/2014,UK10/072014/2572,4678.60
Lancaster City Council,30UH,Cable&Wireless UK,Resources,Data Line Rental,17/07/2014,UK10/072014/9740,1433.33
Lancaster City Council,30UH,Cable&Wireless UK,Resources,Telephones,03/07/2014,12918535,1653.34
Lancaster City Council,30UH,Calico Enterprise Ltd,Environmental Services,Apprenticeship Scheme,09/07/2014,SINV/00000568,1714.59
Lancaster City Council,30UH,Calico Enterprise Ltd t/a Furniture Matters,Environmental Services,Services - General,29/07/2014,769,11605.17
Lancaster City Council,30UH,Capra Design,Regeneration and Planning,Marketing,03/07/2014,737,620.00
Lancaster City Council,30UH,Carlisle Glass Limited,Environmental Services,Capital Payments To Contractors,28/07/2014,M 685410,1043.20
Lancaster City Council,30UH,Carlisle Glass Limited,Environmental Services,Void Maintenance - Internal,16/07/2014,M 678999,1302.00
Lancaster City Council,30UH,Cater-Kwik Ltd,Health & Housing,Equipment and Tools - General,41834,bpc001446,894.99
Lancaster City Council,30UH,CBH Training Limited,Governance,Corporate Training Budget,22/07/2014,1109,575.00
Lancaster City Council,30UH,CEEP Limited,Health & Housing,Services - Consultants,31/07/2014,LCC0714,5000.00
Lancaster City Council,30UH,CEMEX UK Materials Ltd,Environmental Services,Materials - General,25/07/2014,3007059560,867.58
Lancaster City Council,30UH,CEMEX UK Materials Ltd,Environmental Services,Materials - General,25/07/2014,3007098877,736.71
Lancaster City Council,30UH,Chorley Community Housing,Regeneration and Planning,Capital Grants,17/07/2014,CIV0028,32400.00
Lancaster City Council,30UH,Chorley Community Housing,Regeneration and Planning,Capital Grants,17/07/2014,CIV0029,100000.00
Lancaster City Council,30UH,Chubb Fire & Security Ltd,Environmental Services,Equipment Maintenance,23/07/2014,4601202,11723.82
Lancaster City Council,30UH,Chubb Fire & Security Ltd,Regeneration and Planning,Capital Payments To Contractors,03/07/2014,4631988,2400.00
Lancaster City Council,30UH,Civica UK Limited,Resources,Software Finance Suite,03/07/2014,C/FS125574,44299.00
Lancaster City Council,30UH,Civica UK Limited,Resources,Software Finance Suite,03/07/2014,C/FS125574,32500.00
Lancaster City Council,30UH,Cleanall Services Ltd.,Resources,Other Cleaning,17/07/2014,22586,6176.55
Lancaster City Council,30UH,CME Artist Services,Regeneration and Planning,Miscellaneous Advertising,22/07/2014,20140704,500.00
Lancaster City Council,30UH,CME Artist Services,Regeneration and Planning,Miscellaneous Advertising,22/07/2014,20140704,500.00
Lancaster City Council,30UH,Community Foundation For Merseyside,Health & Housing,Grants,10/07/2014,14/021,12200.00
Lancaster City Council,30UH,Constructing the Future Lancashire Limited,Environmental Services,Apprenticeship Scheme,03/07/2014,CTFL/SINV/00000534,2739.81
Lancaster City Council,30UH,Constructing the Future Lancashire Limited,Environmental Services,Apprenticeship Scheme,03/07/2014,CTFL/SINV/00000584,3285.27
Lancaster City Council,30UH,Contour Showers Ltd.,Environmental Services,Materials - General,09/07/2014,431285,600.00
Lancaster City Council,30UH,Contour Showers Ltd.,Environmental Services,Materials - General,09/07/2014,431288,505.75
Lancaster City Council,30UH,Contour Showers Ltd.,Environmental Services,Materials - General,09/07/2014,431299,692.65
Lancaster City Council,30UH,Contour Showers Ltd.,Environmental Services,Materials - General,28/07/2014,427491,684.00
Lancaster City Council,30UH,Corona Energy,Health & Housing,Gas,21/07/2014,09404689,551.38
Lancaster City Council,30UH,Correct Flow Engineering Ltd,Environmental Services,Contract Maintenance,02/07/2014,143,505.40
Lancaster City Council,30UH,Countrystyle Meats Farmshop,Health & Housing,Materials For Resale,41851,bpc001518,678.38
Lancaster City Council,30UH,Countrywide Lettings,Resources,Debtors (Powersol) refunds,25/07/2014,pdi040196,968.72
Lancaster City Council,30UH,County Care Services Ltd T/A Carewatch,Health & Housing,Contracted Services,09/07/2014,51943,1037.50
Lancaster City Council,30UH,Craemer UK Ltd,Environmental Services,Equipment and Tools - General,04/07/2014,1631105,8750.00
Lancaster City Council,30UH,Craig Jury Plant & Groundworks Limited,Environmental Services,Materials - General,16/07/2014,00243,1890.00
Lancaster City Council,30UH,Craig Jury Plant & Groundworks Limited,Environmental Services,Materials - General,16/07/2014,00252,544.00
Lancaster City Council,30UH,Craig Jury Plant & Groundworks Limited,Regeneration and Planning,R & M - Sea & River / Promenade,07/07/2014,00250,6256.00
Lancaster City Council,30UH,Craig Jury Plant & Groundworks Limited,Regeneration and Planning,R & M - Sea & River / Promenade,07/07/2014,00250,4083.32
Lancaster City Council,30UH,Craig Jury Plant & Groundworks Limited,Regeneration and Planning,R & M - Sea & River / Promenade,14/07/2014,00251,928.00
Lancaster City Council,30UH,Crossling Ltd,Environmental Services,White Lund Stock,25/07/2014,1247767,968.99
Lancaster City Council,30UH,CTM Fire and Security Ltd,Environmental Services,Capital Payments To Contractors,29/07/2014,60034,48823.23
Lancaster City Council,30UH,Cumbria County Council,Regeneration and Planning,Grants,02/07/2014,npr000149,23000.00
Lancaster City Council,30UH,Cumbria Wildlife Trust,Regeneration and Planning,Grants,01/07/2014,npr000148,16572.31
Lancaster City Council,30UH,Cyclescheme Limited,Resources,Purchase of Cycles,03/07/2014,W235178,1853.86
Lancaster City Council,30UH,Cyclescheme Limited,Resources,Purchase of Cycles,10/07/2014,W235409,749.17
Lancaster City Council,30UH,Cyclescheme Limited,Resources,Purchase of Cycles,31/07/2014,w2386083,669.98
Lancaster City Council,30UH,Cyclescheme Limited,Resources,Purchase of Cycles,31/07/2014,W238824,581.64
Lancaster City Council,30UH,D A Edgar Plastering & Tiling,Environmental Services,Void Maintenance - External,02/07/2014,43,749.00
Lancaster City Council,30UH,D A Edgar Plastering & Tiling,Environmental Services,Void Maintenance - External,17/07/2014,45,525.00
Lancaster City Council,30UH,Daniel Thwaites plc,Regeneration and Planning,Bar Supplies,41850,npc000300,844.2
Lancaster City Council,30UH,Daniel Thwaites plc,Regeneration and Planning,Bar Supplies,41850,npc000302,1314.17
Lancaster City Council,30UH,Dave Wilson Developments,Health & Housing,Capital Grants,14/07/2014,spr000494,701.91
Lancaster City Council,30UH,Dave Wilson Developments,Health & Housing,Capital Grants,31/07/2014,spr000502,2668.00
Lancaster City Council,30UH,David A. Farrer Limited,Health & Housing,Capital Grants,14/07/2014,spr000493,2580.00
Lancaster City Council,30UH,David A. Farrer Limited,Health & Housing,Capital Grants,25/07/2014,spr000497,4452.00
Lancaster City Council,30UH,David A. Farrer Limited,Health & Housing,Capital Grants,30/07/2014,spr000500,1760.00
Lancaster City Council,30UH,David Willan,Health & Housing,Materials For Resale,41849,bpc001502,509.7
Lancaster City Council,30UH,Deco Publique,Regeneration and Planning,Entertainment Fees,03/07/2014,1,3000.00
Lancaster City Council,30UH,Deco Publique,Regeneration and Planning,Entertainment Fees,04/07/2014,1,3000.00
Lancaster City Council,30UH,Dell Corporation Ltd,Resources,Purchase Of Equipment,31/07/2014,7402137125,8445.60
Lancaster City Council,30UH,Department for Communities and Local Government,Resources,Pooled Capital Receipt Payments,18/07/2014,fpr000334,29110.32
Lancaster City Council,30UH,Duncan Ross Ltd,Environmental Services,R & M - Buildings,10/07/2014,3079,3885.00
Lancaster City Council,30UH,DW sports,Health & Housing,Sundry Expenses,41830,bpc001440,552.49
Lancaster City Council,30UH,Dyno-Start,Health & Housing,Equipment and Tools - General,41827,bpc001413,1495
Lancaster City Council,30UH,E File UK Limited (Tradescanne,Resources,Acquisition Of Software,41843,jpc000181,1366.64
Lancaster City Council,30UH,E.ON,Regeneration and Planning,Electricity,28/07/2014,HDECF1B46,656.68
Lancaster City Council,30UH,E.ON,Environmental Services,Electricity,09/07/2014,H103002B8A,673.91
Lancaster City Council,30UH,E.ON,Environmental Services,Electricity,10/07/2014,h102ff3528,1312.95
Lancaster City Council,30UH,E.ON,Environmental Services,Electricity,23/07/2014,HDE610B29,539.61
Lancaster City Council,30UH,Electricity North West Limited,Regeneration and Planning,Capital Payments To Contractors,02/07/2014,Y60345/B,905.96
Lancaster City Council,30UH,Electricity North West Limited,Regeneration and Planning,Capital Payments To Contractors,18/07/2014,Y70541,2039.73
Lancaster City Council,30UH,EMCOR Facilities Services Ltd,Environmental Services,Capital Payments To Contractors,28/07/2014,00333519 RI,86257.71
Lancaster City Council,30UH,EMCOR Facilities Services Ltd,Environmental Services,Capital Payments To Contractors,28/07/2014,00333521 RI,78609.37
Lancaster City Council,30UH,EMCOR Facilities Services Ltd,Environmental Services,Capital Payments To Contractors,30/07/2014,00333683 RI,46733.74
Lancaster City Council,30UH,EMCOR Facilities Services Ltd,Environmental Services,Gas Partnership Agreement,28/07/2014,00333520 RI,43128.86
Lancaster City Council,30UH,EMCOR Facilities Services Ltd,Environmental Services,Void Maintenance - External,28/07/2014,00333684 RI,4727.36
Lancaster City Council,30UH,English Landscapes Ltd t/a The Landscape Group,Regeneration and Planning,Capital Payments To Contractors,16/07/2014,0119,169671.94
Lancaster City Council,30UH,Enigma CCTV Ltd,Environmental Services,Contracted Services,23/07/2014,2164,6910.50
Lancaster City Council,30UH,Envirovent Ltd,Environmental Services,Contracted Services,02/07/2014,0000135766,689.00
Lancaster City Council,30UH,Envirovent Ltd,Environmental Services,Contracted Services,22/07/2014,0000136713,839.00
Lancaster City Council,30UH,Envirovent Ltd,Environmental Services,Contracted Services,22/07/2014,0000136981,953.00
Lancaster City Council,30UH,Ergo Mounts Ltd,Health & Housing,Computer Equipment,41851,bpc001517,534.15
Lancaster City Council,30UH,Eversheds LLP,Regeneration and Planning,Capital Payments To Contractors,31/07/2014,91306530,6292.54
Lancaster City Council,30UH,First Aid Training Plus,Regeneration and Planning,Management Plan Projects,21/07/2014,149,559.00
Lancaster City Council,30UH,FORTUNE COOKIE SUPPLIES LTD,Governance,Miscellaneous Advertising,41843,dpc000172,692.16
Lancaster City Council,30UH,FTS Fire and Security Ltd,Resources,R & M - Buildings,09/07/2014,EXT 15680,602.60
Lancaster City Council,30UH,FTS Fire and Security Ltd,Resources,R & M - Buildings,23/07/2014,EXT 15711,777.80
Lancaster City Council,30UH,G & G Signs,Environmental Services,R & M - General,16/07/2014,23523,800.00
Lancaster City Council,30UH,Gateley Solicitors,Governance,Legal & Court Costs,41831,lpc000122,2495
Lancaster City Council,30UH,George Speight and Sons,Health & Housing,Materials For Resale,41851,bpc001516,766.02
Lancaster City Council,30UH,Gerald Rawcliffe Motor Body Repairs,Resources,Insurance Excess,03/07/2014,25210,1733.91
Lancaster City Council,30UH,Glasdon Manufacturing,Health & Housing,Equipment and Tools - General,41842,bpc001460,540
Lancaster City Council,30UH,Glasdon U.K. Ltd,Environmental Services,Materials - General,28/07/2014,667694,1450.00
Lancaster City Council,30UH,Glasdon U.K. Ltd,Environmental Services,Materials - General,28/07/2014,667694,4186.49
Lancaster City Council,30UH,Granart Memorials,Health & Housing,Contracted Services,08/07/2014,6857,1600.00
Lancaster City Council,30UH,Grant M Parkinson Painting & Decorating Services,Health & Housing,Fixtures & Fittings - General,21/07/2014,01992,1000.00
Lancaster City Council,30UH,Greenham Trading Limited,Environmental Services,White Lund Stock,01/07/2014,11/236210,731.10
Lancaster City Council,30UH,Greentraveller Limited,Regeneration and Planning,Services - Consultants,23/07/2014,GTCOM2219,950.00
Lancaster City Council,30UH,Greentraveller Limited,Regeneration and Planning,Services - Consultants,23/07/2014,GTCOM2219,950.00
Lancaster City Council,30UH,Greentraveller Limited,Regeneration and Planning,Services - Consultants,23/07/2014,GTCOM2219,2250.00
Lancaster City Council,30UH,Grosvenor House Papers Limited,Resources,Printing & Stationery,16/07/2014,81529,500.00
Lancaster City Council,30UH,Gullivers Truck Hire Ltd,Environmental Services,Materials - General,25/07/2014,1406/18991,625.00
Lancaster City Council,30UH,Gullivers Truck Hire Ltd,Environmental Services,Materials - General,25/07/2014,1406/21149,625.00
Lancaster City Council,30UH,Gullivers Truck Hire Ltd,Environmental Services,Materials - General,25/07/2014,1406/25013,625.00
Lancaster City Council,30UH,Gullivers Truck Hire Ltd,Environmental Services,Materials - General,25/07/2014,1407/29856,625.00
Lancaster City Council,30UH,Gullivers Truck Hire Ltd,Environmental Services,Materials - General,25/07/2014,1407/32521,625.00
Lancaster City Council,30UH,H Bleasdale  (French Polisher),Resources,Fixtures & Fittings - General,16/07/2014,SH,1200.00
Lancaster City Council,30UH,Halton Container Services Ltd,Environmental Services,Equipment and Tools - General,04/07/2014,1395,1450.00
Lancaster City Council,30UH,Happy Creative Limited,Regeneration and Planning,Printing & Stationery,22/07/2014,H3310,720.00
Lancaster City Council,30UH,Harveys,Health & Housing,Equipment and Tools - General,41848,bpc001477,625
Lancaster City Council,30UH,Herbert T. Forrest Ltd,Environmental Services,Capital Payments To Contractors,04/07/2014,101701-3,77825.81
Lancaster City Council,30UH,Heritage Cards & Souvenirs Ltd,Regeneration and Planning,Materials For Resale,01/07/2014,22571,660.15
Lancaster City Council,30UH,Heysham High School,Health & Housing,Gas,31/07/2014,IN046580,1267.86
Lancaster City Council,30UH,Heysham High School,Health & Housing,Gas,31/07/2014,IN046581,1295.75
Lancaster City Council,30UH,Hi-Tech Security Systems,Environmental Services,R & M - Buildings,23/07/2014,210124,550.00
Lancaster City Council,30UH,HMCS,Resources,Legal & Court Costs,41829,rpc000026,633
Lancaster City Council,30UH,Honeywell Control Systems Ltd,Resources,R & M - Buildings,11/07/2014,5200863802,3270.16
Lancaster City Council,30UH,Horton Automatics Limited,Resources,R & M - Buildings,17/07/2014,4052926,1872.77
Lancaster City Council,30UH,Housemark Ltd,Health & Housing,Subscriptions,24/07/2014,QUO-04022-N6S3X3,4603.20
Lancaster City Council,30UH,Hygiene Cleaning Supplies Ltd,Environmental Services,White Lund Stock,01/07/2014,73801,547.42
Lancaster City Council,30UH,Hygiene Cleaning Supplies Ltd,Environmental Services,White Lund Stock,02/07/2014,74471,601.28
Lancaster City Council,30UH,IDOX Software Limited,Governance,Miscellaneous Licences,03/07/2014,100780,4250.00
Lancaster City Council,30UH,IDOX Software Limited,Governance,Office Equipment,03/07/2014,7003086,8215.00
Lancaster City Council,30UH,Inform CPI Ltd,Resources,Services - General,10/07/2014,46385,930.00
Lancaster City Council,30UH,Inform CPI Ltd,Resources,Services - General,10/07/2014,46411,542.50
Lancaster City Council,30UH,Instarmac Group PLC,Environmental Services,White Lund Stock,21/07/2014,455090,2235.52
Lancaster City Council,30UH,J & H M Dickson Ltd,Environmental Services,Equipment and Tools - General,02/07/2014,53698,1000.00
Lancaster City Council,30UH,J Atkinson & Co,Health & Housing,Equipment and Tools - General,41849,bpc001495,4653
Lancaster City Council,30UH,J Atkinson & Co,Health & Housing,VAT Control,41849,bpc001495,930.6
Lancaster City Council,30UH,J Atkinson &amp; Co,Health & Housing,Equipment and Tools - General,41849,bpc001497,539
Lancaster City Council,30UH,J B S Builders,Environmental Services,Contracted Services,16/07/2014,,1660.00
Lancaster City Council,30UH,J C Critchley Ltd,Environmental Services,Capital Payments To Contractors,04/07/2014,0905,6247.00
Lancaster City Council,30UH,J C Critchley Ltd,Environmental Services,Capital Payments To Contractors,15/07/2014,0905,4350.00
Lancaster City Council,30UH,J C Critchley Ltd,Environmental Services,Capital Payments To Contractors,30/07/2014,0907,5708.00
Lancaster City Council,30UH,J C Critchley Ltd,Environmental Services,Capital Payments To Contractors,30/07/2014,0908,1171.12
Lancaster City Council,30UH,J C Critchley Ltd,Environmental Services,Contracted Services,30/07/2014,0909,600.00
Lancaster City Council,30UH,J M Pratt Ltd,Environmental Services,Materials For Resale,41851,24828,932.76
Lancaster City Council,30UH,Jewson Limited,Environmental Services,White Lund Stock,01/07/2014,0333/0103323,1321.20
Lancaster City Council,30UH,JF & H E S Caton,Environmental Services,Capital Payments To Contractors,16/07/2014,379,4000.00
Lancaster City Council,30UH,Jill Trafford (Instructor),Health & Housing,Services - General,29/07/2014,07/14,1180.00
Lancaster City Council,30UH,John Liscombe Ltd,Environmental Services,White Lund Stock,02/07/2014,50035293,1362.42
Lancaster City Council,30UH,John Liscombe Ltd,Environmental Services,White Lund Stock,21/07/2014,50040747,842.40
Lancaster City Council,30UH,Johnston Publishing Ltd,Governance,Miscellaneous Advertising,17/07/2014,1988699,881.26
Lancaster City Council,30UH,Johnston Publishing Ltd,Regeneration and Planning,Printing & Stationery,08/07/2014,1765395,728.00
Lancaster City Council,30UH,Keepmoat Regeneration Ltd,Resources,Capital Payments To Contractors,22/07/2014,CSCT000542-005,15614.48
Lancaster City Council,30UH,Keepmoat Regeneration Ltd,Resources,Capital Payments To Contractors,23/07/2014,CSCT000582-005,13991.68
Lancaster City Council,30UH,Keepmoat Regeneration Ltd,Resources,R & M - Buildings,23/07/2014,SINVB000531,9516.95
Lancaster City Council,30UH,Kelway Ltd,Resources,Purchase Of Equipment,17/07/2014,PSINV01187793,5010.96
Lancaster City Council,30UH,Kelway Ltd,Resources,Purchase Of Equipment,17/07/2014,PSINV01188463,1775.84
Lancaster City Council,30UH,Lancashire Constabulary,Environmental Services,Contracted Services,29/07/2014,7500004120,24750.00
Lancaster City Council,30UH,Lancashire County Council,Governance,Land Charge Fees - L.C.C.,10/07/2014,5200061847,1722.00
Lancaster City Council,30UH,Lancashire County Council,Resources,Data Line Rental,03/07/2014,5200059174,1737.73
Lancaster City Council,30UH,Lancashire County Council,Health & Housing,Capital Grants,07/07/2014,spr000485,6349.00
Lancaster City Council,30UH,Lancashire County Council,Health & Housing,Capital Grants,07/07/2014,spr000486,677.00
Lancaster City Council,30UH,Lancashire County Council,Health & Housing,Capital Grants,25/07/2014,spr000498,4832.00
Lancaster City Council,30UH,Lancashire County Council,Health & Housing,Capital Grants,25/07/2014,spr000499,2489.00
Lancaster City Council,30UH,Lancashire County Council,Health & Housing,Capital Grants,31/07/2014,spr000503,4165.20
Lancaster City Council,30UH,Lancashire County Council,Resources,Mapzone,10/07/2014,5200059175,6889.67
Lancaster City Council,30UH,Lancashire County Council,Environmental Services,Capital Payments To Contractors,01/07/2014,5100197638,3286.00
Lancaster City Council,30UH,Lancashire County Council,Environmental Services,Capital Payments To Contractors,23/07/2014,5200061316,8715.00
Lancaster City Council,30UH,Lancashire County Council,Environmental Services,Materials - General,23/07/2014,5200060642,29458.00
Lancaster City Council,30UH,Lancashire County Council,Environmental Services,Materials - General,23/07/2014,5200060643,34683.00
Lancaster City Council,30UH,Lancashire County Council,Resources,Pensions Inc Act - LCC,24/07/2014,6600001042,15493.81
Lancaster City Council,30UH,Lancashire County Council,Resources,Subscriptions,24/07/2014,5200061511,699.00
Lancaster City Council,30UH,Lancashire Fire Protection Ltd,Environmental Services,Capital Payments To Contractors,23/07/2014,11648,3060.00
Lancaster City Council,30UH,Lancashire Probation Board,Environmental Services,Probation Service,23/07/2014,OP/I002998,4000.00
Lancaster City Council,30UH,Lancashire Sport Partnership Ltd,Health & Housing,Subscriptions,10/07/2014,LSP0688,2500.00
Lancaster City Council,30UH,Lancashire Wildlife Trust Ltd,Regeneration and Planning,R & M - Buildings,10/07/2014,8222,2638.57
Lancaster City Council,30UH,Lancaster Management Services T/A LaraNichols ,Regeneration and Planning,Other Cleaning,16/07/2014,10261,641.31
Lancaster City Council,30UH,Lathams,Health & Housing,Materials For Resale,41849,bpc001504,1439.14
Lancaster City Council,30UH,Let`s Play (Everywhere) Ltd,Environmental Services,Capital Payments To Contractors,03/07/2014,LPE/INST1372,2900.00
Lancaster City Council,30UH,Let`s Play (Everywhere) Ltd,Environmental Services,Materials - General,23/07/2014,LPE/SS2094,640.00
Lancaster City Council,30UH,LexisNexis UK,Governance,Books & Periodicals,10/07/2014,SG4K13836,612.75
Lancaster City Council,30UH,LexisNexis UK,Regeneration and Planning,Subscriptions,03/07/2014,DI4L20795,1516.00
Lancaster City Council,30UH,Lingwood Security Management Limited,Resources,Security Services,24/07/2014,18928,510.00
Lancaster City Council,30UH,Local Government Association,Governance,Legal & Court Costs,03/07/2014,40137432,1370.80
Lancaster City Council,30UH,London Pupae,Environmental Services,Materials - General,41849,24782,517.95
Lancaster City Council,30UH,Lothersdale,Health & Housing,Homelessness Priority Need Order,41827,spc000401,700.08
Lancaster City Council,30UH,Ludus Dance Company,Regeneration and Planning,Grants,08/07/2014,213,2375.00
Lancaster City Council,30UH,Ludus Dance Company,Regeneration and Planning,Grants,08/07/2014,214,2375.00
Lancaster City Council,30UH,LUNS Ltd,Resources,Data Line Rental,17/07/2014,8654790,2500.00
Lancaster City Council,30UH,M & D Forsyth Electrical Services Ltd,Environmental Services,Void Maintenance - External,06/07/2014,473,2104.94
Lancaster City Council,30UH,M & D Forsyth Electrical Services Ltd,Environmental Services,Void Maintenance - External,07/07/2014,457,526.00
Lancaster City Council,30UH,M & D Forsyth Electrical Services Ltd,Environmental Services,Void Maintenance - External,07/07/2014,464,968.00
Lancaster City Council,30UH,M & D Forsyth Electrical Services Ltd,Environmental Services,Void Maintenance - External,07/07/2014,465,785.00
Lancaster City Council,30UH,M & D Forsyth Electrical Services Ltd,Environmental Services,Void Maintenance - External,07/07/2014,466,772.00
Lancaster City Council,30UH,M & D Forsyth Electrical Services Ltd,Environmental Services,Void Maintenance - External,07/07/2014,467,653.00
Lancaster City Council,30UH,M & D Forsyth Electrical Services Ltd,Environmental Services,Void Maintenance - External,07/07/2014,468,1240.00
Lancaster City Council,30UH,M & D Forsyth Electrical Services Ltd,Environmental Services,Void Maintenance - External,07/07/2014,470,503.00
Lancaster City Council,30UH,M & D Forsyth Electrical Services Ltd,Environmental Services,Void Maintenance - External,08/07/2014,469,714.00
Lancaster City Council,30UH,M D Hanafin & Sons Ltd,Environmental Services,Contracted Services,20/07/2014,113030,4027.20
Lancaster City Council,30UH,M D Hanafin & Sons Ltd,Environmental Services,Contracted Services,20/07/2014,113034,983.46
Lancaster City Council,30UH,M D Hanafin & Sons Ltd,Environmental Services,Contracted Services,20/07/2014,113036,1051.74
Lancaster City Council,30UH,M D Hanafin & Sons Ltd,Environmental Services,Contracted Services,20/07/2014,113039,786.00
Lancaster City Council,30UH,M D Hanafin & Sons Ltd,Environmental Services,Contracted Services,20/07/2014,113040,869.60
Lancaster City Council,30UH,M D Hanafin & Sons Ltd,Environmental Services,Contracted Services,20/07/2014,113049,793.35
Lancaster City Council,30UH,M D Hanafin & Sons Ltd,Environmental Services,Contracted Services,20/07/2014,113050,830.28
Lancaster City Council,30UH,M D Hanafin & Sons Ltd,Environmental Services,Contracted Services,20/07/2014,113053,952.16
Lancaster City Council,30UH,M D Hanafin & Sons Ltd,Environmental Services,Contracted Services,20/07/2014,113121,830.28
Lancaster City Council,30UH,M D Hanafin & Sons Ltd,Environmental Services,Contracted Services,22/07/2014,113042,808.85
Lancaster City Council,30UH,Magnet Limited,Environmental Services,Other Construction Costs,08/07/2014,158/170856,555.33
Lancaster City Council,30UH,Magnet Limited,Environmental Services,Other Construction Costs,08/07/2014,158/170907,645.13
Lancaster City Council,30UH,Magnet Limited,Environmental Services,Other Construction Costs,08/07/2014,158/171074,602.39
Lancaster City Council,30UH,Magnet Limited,Environmental Services,Other Construction Costs,08/07/2014,158/171229,551.06
Lancaster City Council,30UH,Magnet Limited,Environmental Services,Other Construction Costs,08/07/2014,158/171230,703.23
Lancaster City Council,30UH,Magnet Limited,Environmental Services,Other Construction Costs,08/07/2014,158/171427,549.17
Lancaster City Council,30UH,Magnet Limited,Environmental Services,Other Construction Costs,08/07/2014,158/171506,633.43
Lancaster City Council,30UH,Magnet Limited,Environmental Services,Other Construction Costs,08/07/2014,158/171753,551.06
Lancaster City Council,30UH,Magnet Limited,Environmental Services,Other Construction Costs,08/07/2014,158/171765,549.17
Lancaster City Council,30UH,Magnet Limited,Environmental Services,Other Construction Costs,21/07/2014,158/171866,877.43
Lancaster City Council,30UH,Magnet Limited,Environmental Services,Other Construction Costs,21/07/2014,158/172005,499.88
Lancaster City Council,30UH,Magnet Limited,Environmental Services,Other Construction Costs,30/07/2014,158/172041,871.65
Lancaster City Council,30UH,Magnet Limited,Environmental Services,White Lund Stock,01/07/2014,158/170993,2890.00
Lancaster City Council,30UH,Majenta Solutions Ltd,Resources,Infrastructure - Update & Maintenance,03/07/2014,37755-SOL5213,5990.00
Lancaster City Council,30UH,Mark Barton Building and Roofing Ltd,Environmental Services,Contracted Services,30/07/2014,0029,3225.00
Lancaster City Council,30UH,Mark Barton Building and Roofing Ltd,Environmental Services,Contracted Services,30/07/2014,0030,2583.00
Lancaster City Council,30UH,Marketing Lancashire,Regeneration and Planning,Joint Marketing Campaigns,03/07/2014,LMKT500166,10500.00
Lancaster City Council,30UH,Marsh and Co. Solicitors,Regeneration and Planning,Grants - Lancaster Conservation Area,03/07/2014,npr000153,716.40
Lancaster City Council,30UH,Marsh Community Centre,Health & Housing,Community Development,31/07/2014,335,3412.50
Lancaster City Council,30UH,Marsh Community Centre,Health & Housing,Services - Consultants,31/07/2014,336A,5000.00
Lancaster City Council,30UH,Marshalls Mono Ltd,Environmental Services,R & M - General,11/07/2014,ZJB0027181,1380.00
Lancaster City Council,30UH,Marshalls Mono Ltd,Environmental Services,White Lund Stock,16/07/2014,ZBB0650144,1868.00
Lancaster City Council,30UH,Marwood Group Ltd,Health & Housing,Grave Excavation,28/07/2014,834623,583.39
Lancaster City Council,30UH,MDP Property Developmenrts,Environmental Services,Capital Payments To Contractors,15/07/2014,1,1012.20
Lancaster City Council,30UH,MDP Property Developmenrts,Environmental Services,Capital Payments To Contractors,15/07/2014,2,733.40
Lancaster City Council,30UH,MDP Property Developmenrts,Environmental Services,Capital Payments To Contractors,15/07/2014,3,995.00
Lancaster City Council,30UH,MDP Property Developmenrts,Environmental Services,Capital Payments To Contractors,22/07/2014,wk com 09.07.14,670.00
Lancaster City Council,30UH,MDP Property Developmenrts,Environmental Services,Capital Payments To Contractors,29/07/2014,5,920.50
Lancaster City Council,30UH,Mercer & Sons Limited,Environmental Services,White Lund Stock,01/07/2014,738241,728.70
Lancaster City Council,30UH,Mercer & Sons Limited,Environmental Services,White Lund Stock,21/07/2014,739770,606.60
Lancaster City Council,30UH,Michael Wilson Joinery and Flat Roofing Specialist,Environmental Services,Contracted Services,02/07/2014,017/14,800.00
Lancaster City Council,30UH,Michael Wilson Joinery and Flat Roofing Specialist,Environmental Services,Contracted Services,02/07/2014,017/14,600.00
Lancaster City Council,30UH,Michael Wilson Joinery and Flat Roofing Specialist,Environmental Services,Contracted Services,22/07/2014,021/14,1580.00
Lancaster City Council,30UH,Michael Wilson Joinery and Flat Roofing Specialist,Environmental Services,Void Maintenance - External,23/07/2014,022/14,1445.00
Lancaster City Council,30UH,Michael Wilson Joinery and Flat Roofing Specialist,Environmental Services,Void Maintenance - External,23/07/2014,022/14,1785.00
Lancaster City Council,30UH,Michael Wilson Joinery and Flat Roofing Specialist,Environmental Services,Void Maintenance - External,23/07/2014,023/14,1180.00
Lancaster City Council,30UH,Middleton`s-Electrical Contractors,Health & Housing,R & M - Buildings,10/07/2014,316,1401.43
Lancaster City Council,30UH,Middleton`s-Electrical Contractors,Health & Housing,R & M - Buildings,24/07/2014,317,619.90
Lancaster City Council,30UH,Miss Rachel Wedderspoon,Governance,Legal & Court Costs,11/07/2014,281444,500.00
Lancaster City Council,30UH,Morecambe FC Community Sports,Health & Housing,Equipment and Tools - General,10/07/2014,2608,500.00
Lancaster City Council,30UH,Morecambe FC Community Sports,Health & Housing,Grants,31/07/2014,2657,4000.00
Lancaster City Council,30UH,Morecambe Press Ltd,Environmental Services,Printing & Stationery,16/07/2014,6236,1342.00
Lancaster City Council,30UH,Morgan Hunt Public Sector Ltd,Regeneration and Planning,Services - General,18/07/2014,742133,759.00
Lancaster City Council,30UH,Morgan Hunt Public Sector Ltd,Regeneration and Planning,Services - General,30/07/2014,743579,678.50
Lancaster City Council,30UH,Mr Barry Berlin,Governance,Service Training Budget,03/07/2014,564019,900.00
Lancaster City Council,30UH,Mr Charles Holland of Trinity Barristers,Governance,Legal & Court Costs,17/07/2014,LG 213111,3000.00
Lancaster City Council,30UH,Mr I Sloan,Resources,Debtors (Powersol) refunds,11/07/2014,ppi056119,616.67
Lancaster City Council,30UH,Mrs D Grantham,Regeneration and Planning,Planning Application Fees,29/07/2014,npr000173,3850.00
Lancaster City Council,30UH,National Blood Service,Resources,Debtors (Powersol) refunds,10/07/2014,pdi051949,676.20
Lancaster City Council,30UH,National Express,Regeneration and Planning,National Express,02/07/2014,AREXT/00157553,610.55
Lancaster City Council,30UH,New Mind Internet Consultancy Limited,Regeneration and Planning,Software Purchase\Licences,03/07/2014,NM29837,1200.00
Lancaster City Council,30UH,New Progress Housing Association Limited,Health & Housing,Services - General,09/07/2014,nscm337,3100.00
Lancaster City Council,30UH,Newclear Drains & Newlook Cleaning Services,Environmental Services,Contracted Services,01/07/2014,9185,580.00
Lancaster City Council,30UH,NHS Lanarkshire,Governance,Services - Medical Fees,01/07/2014,L0030054,2467.00
Lancaster City Council,30UH,NHS Lanarkshire,Governance,Services - Medical Fees,01/07/2014,L0030444,2467.00
Lancaster City Council,30UH,Nomix Enviro Ltd,Environmental Services,Materials - General,07/07/2014,SI/02392492,3635.00
Lancaster City Council,30UH,North West Timber Treatments Ltd,Environmental Services,Materials - General,07/07/2014,48598,1457.24
Lancaster City Council,30UH,Northern Housing Consortium Ltd,Health & Housing,Contracted Services,17/07/2014,48948,3500.00
Lancaster City Council,30UH,Northern Municipal Spares Ltd t/a ProBrush,Environmental Services,White Lund Stock,02/07/2014,10841,1971.31
Lancaster City Council,30UH,Northwood,Resources,Rent Allowances,07/07/2014,070714,1290.00
Lancaster City Council,30UH,npower,Health & Housing,Electricity,10/07/2014,LGUPXH2N,5904.80
Lancaster City Council,30UH,npower,Health & Housing,Electricity,24/07/2014,LGUP5FWO,4320.78
Lancaster City Council,30UH,npower,Health & Housing,Electricity,24/07/2014,LGUP5FWO,803.07
Lancaster City Council,30UH,npower,Health & Housing,Electricity,24/07/2014,LGUP5FWO,1632.75
Lancaster City Council,30UH,npower,Health & Housing,Electricity,24/07/2014,LGUP5FWO,981.52
Lancaster City Council,30UH,npower,Environmental Services,Electricity,02/07/2014,LGUPKZ2C,2047.52
Lancaster City Council,30UH,npower,Environmental Services,Electricity,02/07/2014,LGUPPX3H,2057.62
Lancaster City Council,30UH,npower,Environmental Services,Electricity,09/07/2014,LGUPXH2S,1808.10
Lancaster City Council,30UH,npower,Environmental Services,Electricity,29/07/2014,LGUP5BBT,661.09
Lancaster City Council,30UH,npower,Resources,Electricity,09/07/2014,LGUPXH2Q,2620.53
Lancaster City Council,30UH,npower,Resources,Electricity,09/07/2014,LGUPXH2R,1306.23
Lancaster City Council,30UH,npower,Resources,Electricity,10/07/2014,LGUPXH2P,758.93
Lancaster City Council,30UH,npower,Resources,Electricity,22/07/2014,LGUP498R,909.77
Lancaster City Council,30UH,npower,Resources,Electricity,23/07/2014,LGUP498Q,1257.21
Lancaster City Council,30UH,npower,Resources,Electricity,23/07/2014,LGUP4ZYM,2546.37
Lancaster City Council,30UH,npower,Resources,Electricity,23/07/2014,LGUP4ZYN,2683.15
Lancaster City Council,30UH,npower,Resources,Electricity,23/07/2014,LGUP4ZYP,2588.94
Lancaster City Council,30UH,npower,Resources,Electricity,24/07/2014,LGUP498V,1546.81
Lancaster City Council,30UH,npower,Resources,Electricity,30/07/2014,LGUP5BB5,1467.52
Lancaster City Council,30UH,npower,Regeneration and Planning,Electricity,29/07/2014,LGUP498T,625.78
Lancaster City Council,30UH,npower,Regeneration and Planning,Electricity,29/07/2014,LGUP498T,1877.34
Lancaster City Council,30UH,NSL Limited,Environmental Services,Cash Collection Expenses,30/07/2014,025386,3415.30
Lancaster City Council,30UH,NSL Limited,Environmental Services,Contracted Services,30/07/2014,025386,6993.66
Lancaster City Council,30UH,Orbis Protect Ltd,Regeneration and Planning,Security Services,14/07/2014,R0506113,1255.95
Lancaster City Council,30UH,Orion Security Print Ltd,Environmental Services,Printing & Stationery,30/07/2014,24570,530.98
Lancaster City Council,30UH,Otis Ltd.,Environmental Services,Contract Maintenance,01/07/2014,01126838,2068.80
Lancaster City Council,30UH,Otis Ltd.,Resources,R & M - Buildings,22/07/2014,RTS 10469999,562.42
Lancaster City Council,30UH,P E Pavlov,Environmental Services,Deposits,03/07/2014,cpr000279,1000.00
Lancaster City Council,30UH,P.McGaffigan & Sons Ltd,Environmental Services,Capital Payments To Contractors,07/07/2014,15462,800.00
Lancaster City Council,30UH,Parksafe (Systems) Ltd,Environmental Services,Parksafe,23/07/2014,2032,11957.25
Lancaster City Council,30UH,PATROL,Environmental Services,Services - Legal Costs,30/07/2014,4933,785.10
Lancaster City Council,30UH,"Peter Atkin, T/A Pete`s Handyman Services",Health & Housing,Capital Grants,23/07/2014,spr000495,3128.93
Lancaster City Council,30UH,Peter Savage Limited,Environmental Services,White Lund Stock,25/07/2014,OP/I155705,1512.00
Lancaster City Council,30UH,PHS Wastetech Limited,Resources,Debtors (Powersol) refunds,17/07/2014,cdi225225,2151.00
Lancaster City Council,30UH,Physical Company,Health & Housing,Equipment and Tools - General,41834,bpc001448,658.7
Lancaster City Council,30UH,Piccadilly Garden Ltd.,Environmental Services,Contracted Services,16/07/2014,2098,918.42
Lancaster City Council,30UH,Plumbase Ltd,Environmental Services,White Lund Stock,01/07/2014,0177/01105684,5019.68
Lancaster City Council,30UH,Power Trading Limited T/A Think Bathrooms,Health & Housing,Capital Grants,07/07/2014,spr000484,3184.15
Lancaster City Council,30UH,Power Trading Limited T/A Think Bathrooms,Health & Housing,Capital Grants,08/07/2014,spr000491,707.50
Lancaster City Council,30UH,PPG Architectural Coatings UK Limited,Environmental Services,White Lund Stock,25/07/2014,4466644176,633.65
Lancaster City Council,30UH,PR Chauffeuring Services,Governance,Central Transport - General,11/07/2014,June 2014,1440.00
Lancaster City Council,30UH,Preston City Council,Health & Housing,Postages,09/07/2014,01693908,675.52
Lancaster City Council,30UH,Preston City Council,Health & Housing,Postages,09/07/2014,01693911,1312.00
Lancaster City Council,30UH,Preston City Council,Environmental Services,Materials - General,07/07/2014,01693500,870.00
Lancaster City Council,30UH,Preston City Council,Resources,Management Fees,15/07/2014,M23,172500.00
Lancaster City Council,30UH,Preston City Council,Resources,Printing & Stationery,30/07/2014,01696743,1179.00
Lancaster City Council,30UH,Principal Pipe Organs,Resources,Grants,16/07/2014,9527,1540.00
Lancaster City Council,30UH,Print Image Facilities LLP,Governance,Postages,10/07/2014,C300846,17833.40
Lancaster City Council,30UH,Print Image Network Ltd,Governance,Printing & Stationery,03/07/2014,A010552,13603.72
Lancaster City Council,30UH,Print Image Network Ltd,Governance,Printing & Stationery,16/07/2014,A010718,828.90
Lancaster City Council,30UH,Profile Security Services Ltd,Environmental Services,Security Services,12/07/2014,106252,5773.00
Lancaster City Council,30UH,Pump Supplies Ltd,Regeneration and Planning,R & M - Buildings,10/07/2014,WI181110,12209.00
Lancaster City Council,30UH,Purchase Power,Resources,Postages,10/07/2014,BB727530,1054.58
Lancaster City Council,30UH,Purple Plumbing Services Limited,Health & Housing,Capital Grants,08/07/2014,spr000489,3255.00
Lancaster City Council,30UH,Pye Motors  Ltd,Environmental Services,Tpt & Plant - Casual Hire,02/07/2014,32724,1050.00
Lancaster City Council,30UH,Quartzelec Ltd,Environmental Services,Capital Payments To Contractors,07/07/2014,7072514,2961.00
Lancaster City Council,30UH,Quartzelec Ltd,Environmental Services,Capital Payments To Contractors,07/07/2014,7072515,2308.77
Lancaster City Council,30UH,R Briggs & Son (Lancaster) Ltd,Environmental Services,Routine Maintenance,23/07/2014,17136,1780.20
Lancaster City Council,30UH,R Briggs & Son (Lancaster) Ltd,Regeneration and Planning,Capital Payments To Contractors,03/07/2014,17117,2423.51
Lancaster City Council,30UH,R G Parkins & Partners Ltd,Environmental Services,Contracted Services,22/07/2014,L31193/01,550.00
Lancaster City Council,30UH,R G Parkins & Partners Ltd,Environmental Services,R & M - Buildings,22/07/2014,L30396/02,753.90
Lancaster City Council,30UH,R G Parkins & Partners Ltd,Resources,R & M - Buildings,09/07/2014,L31194/01,568.75
Lancaster City Council,30UH,R G Parkins & Partners Ltd,Regeneration and Planning,Works In Default,03/07/2014,L6030,639.20
Lancaster City Council,30UH,Redrow Homes Lancashire,Regeneration and Planning,Planning Application Fees,17/07/2014,npr000163,5005.00
Lancaster City Council,30UH,Refined By Ltd,Regeneration and Planning,Management Plan Projects,23/07/2014,3,3300.00
Lancaster City Council,30UH,Rentokil Initial UK Ltd,Environmental Services,Contract Maintenance,22/07/2014,70590463,1186.90
Lancaster City Council,30UH,Rentokil Initial UK Ltd,Resources,R & M - Buildings,21/07/2014,70590687,715.80
Lancaster City Council,30UH,Ricoh UK Ltd,Resources,Printing\Copying Equipment,24/07/2014,87928880,1162.37
Lancaster City Council,30UH,Riverside Tiles,Environmental Services,Capital Payments To Contractors,29/07/2014,3,731.25
Lancaster City Council,30UH,Rogerson HomeServe Plus Limited,Environmental Services,Capital Payments To Contractors,07/07/2014,INV1321,2855.00
Lancaster City Council,30UH,Rogerson HomeServe Plus Limited,Health & Housing,Capital Grants,08/07/2014,spr000490,2723.00
Lancaster City Council,30UH,Rossendales,Environmental Services,Water Services,41821,24423,917.54
Lancaster City Council,30UH,Royal Mail Group Ltd,Governance,Postages,16/07/2014,9047294644,6525.33
Lancaster City Council,30UH,Royal Mail Group Ltd,Governance,Postages,16/07/2014,9047562508,631.57
Lancaster City Council,30UH,Royal Mail Group Ltd,Governance,Postages,30/07/2014,9047780967,769.00
Lancaster City Council,30UH,RSPB,Regeneration and Planning,Grants,01/07/2014,npr000146,24017.23
Lancaster City Council,30UH,S & J Lewis Landscaping,Environmental Services,Materials - General,07/07/2014,SN 0212283,583.50
Lancaster City Council,30UH,S R Brown Ltd,Health & Housing,R & M - Buildings,22/07/2014,14135,622.00
Lancaster City Council,30UH,S R Brown Ltd,Health & Housing,Capital Grants,01/07/2014,spr000480,2398.00
Lancaster City Council,30UH,SG Equipment Finance Ltd,Resources,Tpt & Plant Operating Leases,03/07/2014,L/011/14/15876,3750.00
Lancaster City Council,30UH,Shorrocks Building Works,Environmental Services,Capital Payments To Contractors,22/07/2014,3235,1489.00
Lancaster City Council,30UH,Shorrocks Building Works,Environmental Services,Contracted Services,22/07/2014,3230,665.00
Lancaster City Council,30UH,Shorrocks Building Works,Environmental Services,Contracted Services,22/07/2014,3231,1185.00
Lancaster City Council,30UH,Shorrocks Building Works,Environmental Services,Contracted Services,22/07/2014,3237,1495.00
Lancaster City Council,30UH,Shorrocks Building Works,Environmental Services,Void Maintenance - External,22/07/2014,3236,1204.00
Lancaster City Council,30UH,Shorrocks Building Works,Environmental Services,Void Maintenance - External,23/07/2014,3234,8635.00
Lancaster City Council,30UH,SICO Europe Ltd,Health & Housing,Equipment and Tools - General,41834,bpc001449,820.25
Lancaster City Council,30UH,Siemens Financial Services Ltd,Health & Housing,Equipment Operating Leases,02/07/2014,244/14/0177986,700.78
Lancaster City Council,30UH,SIGNS EXPRESS,Governance,Office Equipment,41849,dpc000173,579.99
Lancaster City Council,30UH,SIGNS EXPRESS,Governance,Office Equipment,41849,dpc000174,579.99
Lancaster City Council,30UH,Slater Safety Supplies,Environmental Services,White Lund Stock,29/07/2014,155832,648.34
Lancaster City Council,30UH,Sound Support Limited,Regeneration and Planning,Equipment and Tools - General,29/07/2014,2094,500.00
Lancaster City Council,30UH,South Cumbria Rivers Trust Limited,Regeneration and Planning,Capital Grants,02/07/2014,npr000150,125770.88
Lancaster City Council,30UH,South Cumbria Rivers Trust Limited,Regeneration and Planning,Grants,02/07/2014,npr000150,93079.20
Lancaster City Council,30UH,Stagecoach,Regeneration and Planning,Stagecoach Tickets,41844,24720,5191.25
Lancaster City Council,30UH,Stagecoach Services Limited,Regeneration and Planning,Stagecoach Tickets,10/07/2014,367534,800.88
Lancaster City Council,30UH,Stagecoach Services Limited,Regeneration and Planning,Stagecoach Tickets,10/07/2014,367535,6889.07
Lancaster City Council,30UH,Stagecoach Services Limited,Regeneration and Planning,Stagecoach Tickets,10/07/2014,367536,971.21
Lancaster City Council,30UH,Standard Fuel Oils Ltd,Environmental Services,White Lund Stock,01/07/2014,13810,23691.80
Lancaster City Council,30UH,Standard Fuel Oils Ltd,Environmental Services,White Lund Stock,15/07/2014,14060,23685.20
Lancaster City Council,30UH,Standard Fuel Oils Ltd,Environmental Services,White Lund Stock,21/07/2014,14372,23199.00
Lancaster City Council,30UH,Star Trac,Health & Housing,Equipment and Tools - General,24/07/2014,213061398,1899.00
Lancaster City Council,30UH,Stelmax Specialist Adhesives Ltd,Environmental Services,Other Construction Costs,02/07/2014,47409,645.00
Lancaster City Council,30UH,Stonewell Property Company Ltd,Resources,Rent,02/07/2014,SI10208,17500.00
Lancaster City Council,30UH,STR Global Limited,Regeneration and Planning,Benchmarking/Research,17/07/2014,126785,2400.00
Lancaster City Council,30UH,Supa Scaffold Ltd,Environmental Services,Materials - General,16/07/2014,1293,2800.00
Lancaster City Council,30UH,Supa Scaffold Ltd,Environmental Services,Rota Painting,17/07/2014,1294,2900.00
Lancaster City Council,30UH,Take One media Ltd,Regeneration and Planning,Brochure Distribution,30/07/2014,LF/1014581,575.00
Lancaster City Council,30UH,Tameside M.B.C.,Resources,Subscriptions,24/07/2014,62280813,1500.00
Lancaster City Council,30UH,TCL Developments Limited,Environmental Services,Capital Payments To Contractors,01/07/2014,723,1200.00
Lancaster City Council,30UH,TCL Developments Limited,Environmental Services,Capital Payments To Contractors,22/07/2014,729,6073.62
Lancaster City Council,30UH,The Industrial Work Solutions UK Limited,Environmental Services,Contracted Services,23/07/2014,23735,992.88
Lancaster City Council,30UH,The Industrial Work Solutions UK Limited,Environmental Services,Contracted Services,23/07/2014,23774,992.88
Lancaster City Council,30UH,The Industrial Work Solutions UK Limited,Environmental Services,Contracted Services,29/07/2014,23801,594.94
Lancaster City Council,30UH,The James Mercer Group Ltd,Health & Housing,Other Fixed Plant,24/07/2014,20093,586.22
Lancaster City Council,30UH,The James Mercer Group Ltd,Health & Housing,Other Fixed Plant,24/07/2014,20172,1620.00
Lancaster City Council,30UH,The Travellers Choice,Health & Housing,Central Transport - General,10/07/2014,69788,1680.00
Lancaster City Council,30UH,The Travellers Choice,Health & Housing,Central Transport - General,10/07/2014,69789,2058.00
Lancaster City Council,30UH,The Travellers Choice,Health & Housing,Central Transport - General,10/07/2014,69790,1742.50
Lancaster City Council,30UH,The Travellers Choice,Health & Housing,Central Transport - General,10/07/2014,69791,720.00
Lancaster City Council,30UH,The Travellers Choice,Regeneration and Planning,Coach Tours,16/07/2014,npr000159,597.26
Lancaster City Council,30UH,The Travellers Choice,Regeneration and Planning,Coach Tours,16/07/2014,npr000159,547.20
Lancaster City Council,30UH,Thomas Graham & Sons (Iron & Steel) Ltd,Environmental Services,Materials - General,29/07/2014,MR162111,747.39
Lancaster City Council,30UH,thomson,Health & Housing,Sundry Expenses,41850,bpc001512,1000
Lancaster City Council,30UH,T-Mobile (UK) Ltd.,Resources,Mobile Telephones,16/07/2014,V00994448546,1449.12
Lancaster City Council,30UH,TNT Post North Limited,Resources,Postages,01/07/2014,IN18US14008533,762.62
Lancaster City Council,30UH,TNT Post North Limited,Resources,Postages,10/07/2014,IN18US14008886,954.92
Lancaster City Council,30UH,TNT Post North Limited,Resources,Postages,16/07/2014,IN18US14009258,1220.24
Lancaster City Council,30UH,TNT Post North Limited,Resources,Postages,30/07/2014,IN18US14009635,901.57
Lancaster City Council,30UH,TNT Post North Limited,Resources,Postages,30/07/2014,IN18US14009979,975.39
Lancaster City Council,30UH,Townscape Products Limited,Environmental Services,White Lund Stock,25/07/2014,59216,1638.00
Lancaster City Council,30UH,Travelers Insurance Company Ltd,Resources,Insurance Excess,24/07/2014,809141,10000.00
Lancaster City Council,30UH,Triscan Systems Limited,Environmental Services,Other Fixed Plant,04/07/2014,4807,620.00
Lancaster City Council,30UH,Twofold Ltd,Governance,Office Equipment,11/07/2014,100068,3295.00
Lancaster City Council,30UH,Tyrone Lewis General Building Contractors,Environmental Services,Materials - General,22/07/2014,ALDCLIFFE RD,1340.00
Lancaster City Council,30UH,Tyrone Lewis General Building Contractors,Health & Housing,Capital Grants,31/07/2014,spr000501,2058.61
Lancaster City Council,30UH,UK Roofing Co,Environmental Services,Contracted Services,03/07/2014,3221,9370.00
Lancaster City Council,30UH,United Utilities Water Plc,Environmental Services,Water Services,10/07/2014,4031096858,1892.86
Lancaster City Council,30UH,United Utilities Water Plc,Resources,Water Services,11/07/2014,4194756140,1512.64
Lancaster City Council,30UH,United Utilities Water Plc,Resources,Water Services,16/07/2014,4084242484,3150.90
Lancaster City Council,30UH,United Utilities Water Plc,Health & Housing,Water Services,25/07/2014,4077771912,10690.63
Lancaster City Council,30UH,United Utilities Water Plc,Health & Housing,Water Services,03/07/2014,4085689807,1623.81
Lancaster City Council,30UH,United Utilities Water Plc,Health & Housing,Water Services,03/07/2014,4085689841,1379.60
Lancaster City Council,30UH,United Utilities Water Plc,Health & Housing,Water Services,24/07/2014,4031369350,1642.20
Lancaster City Council,30UH,United Utilities Water Plc,Health & Housing,Water Services,24/07/2014,4085689465,1557.24
Lancaster City Council,30UH,United Utilities Water Plc,Health & Housing,Water Services,24/07/2014,4085689545,1065.86
Lancaster City Council,30UH,United Utilities Water Plc,Environmental Services,Water Services,02/07/2014,4082082502,998.71
Lancaster City Council,30UH,United Utilities Water Plc,Environmental Services,Water Services,02/07/2014,4082082502,659.64
Lancaster City Council,30UH,United Utilities Water Plc,Environmental Services,Water Services,23/07/2014,4033129630,502.31
Lancaster City Council,30UH,United Utilities Water Plc,Environmental Services,Water Services,23/07/2014,4075208269,8594.08
Lancaster City Council,30UH,United Utilities Water Plc,Environmental Services,Water Services,23/07/2014,4077148659,11990.90
Lancaster City Council,30UH,United Utilities Water Plc,Environmental Services,Water Services,29/07/2014,4033129630,502.31
Lancaster City Council,30UH,United Utilities Water Plc,Environmental Services,Water Services,29/07/2014,4075208269,5802.51
Lancaster City Council,30UH,United Utilities Water Plc,Environmental Services,Water Services,29/07/2014,4075208269,4037.20
Lancaster City Council,30UH,United Utilities Water Plc,Environmental Services,Water Services,29/07/2014,4076362540,733.79
Lancaster City Council,30UH,United Utilities Water Plc,Environmental Services,Water Services,29/07/2014,4077148659,1199.90
Lancaster City Council,30UH,United Utilities Water Plc,Environmental Services,Water Services,30/07/2014,4188345184,594.45
Lancaster City Council,30UH,Valley View Pets Hotel,Health & Housing,Services - Kennelling,03/07/2014,11/14,2695.00
Lancaster City Council,30UH,Vision Services (North West) Ltd,Environmental Services,Contracted Services,08/07/2014,30430,736.26
Lancaster City Council,30UH,VPS (UK) Limited,Environmental Services,Void Maintenance - External,23/07/2014,7228365,820.00
Lancaster City Council,30UH,VPS (UK) Limited,Environmental Services,Void Maintenance - External,23/07/2014,7228366,595.00
Lancaster City Council,30UH,VPS (UK) Limited,Environmental Services,Void Maintenance - External,23/07/2014,7228368,6000.00
Lancaster City Council,30UH,Wessex Products (Leasing) Limited,Resources,Equipment Maintenance,01/07/2014,0000101377,642.20
Lancaster City Council,30UH,West Coast Glass (Morecambe) Ltd,Environmental Services,Materials - General,02/07/2014,21363B,522.00
Lancaster City Council,30UH,Whinfield Study Trust,Health & Housing,Electricity,21/07/2014,WHO135,673.55
Lancaster City Council,30UH,Whinfield Study Trust,Health & Housing,Gas,21/07/2014,WHO135,951.30
Lancaster City Council,30UH,Whinfield Study Trust,Health & Housing,Water Services,21/07/2014,WHO135,641.58
Lancaster City Council,30UH,Winning Building Services,Environmental Services,R & M - Buildings,02/07/2014,00183,10705.50
Lancaster City Council,30UH,"Your Electrical S, S & S Ltd  T/a YESSS Electrical",Environmental Services,White Lund Stock,02/07/2014,062IN10156,1189.50
Lancaster City Council,30UH,Zoeller Waste Systems Limited,Environmental Services,Repair & Mtce Of Vehicles,02/07/2014,SVI27932,919.95
